lending/lending_fUSD_20250621
["ID","MTS","AMOUNT","RATE_DAILY","PERIOD"]
[366868655,1750530639037,-150.0,0.0002347,2]
[366868656,1750530639047,-500.0,0.0002347,2]
[366868657,1750530639056,-500.0,0.0002347,2]
[366868658,1750530639066,-500.0,0.0002347,2]
[366868659,1750530639075,-500.0,0.0002347,2]
[366868660,1750530639085,-500.0,0.0002347,2]
[366868661,1750530639094,-158.21118038,0.0002347,2]
[366868662,1750530639104,-150.0,0.0002347,2]
[366868663,1750530639113,-150.0,0.0002347,2]
[366868664,1750530639123,-500.0,0.0002347,2]
[366868665,1750530639132,-150.0,0.0002347,2]
[366868666,1750530639142,-500.0,0.0002347,2]
[366868667,1750530639152,-150.0,0.0002347,2]
[366868668,1750530639162,-500.0,0.0002347,2]
[366868669,1750530639171,-2261.44941,0.0002347,2]
[366868670,1750530639181,-500.0,0.0002347,2]
[366868671,1750530639190,-151.0,0.0002347,2]
[366868672,1750530639200,-151.0,0.0002347,2]
[366868673,1750530639210,-151.0,0.0002347,2]
[366868674,1750530639219,-151.0,0.0002347,2]
[366868675,1750530639229,-151.0,0.0002347,2]
[366868676,1750530639239,-151.0,0.0002347,2]
[366868677,1750530639249,-151.0,0.0002347,2]
[366868678,1750530639259,-151.0,0.0002347,2]
[366868679,1750530639269,-151.0,0.0002347,2]
[366868680,1750530639280,-151.0,0.0002347,2]
[366868681,1750530639289,-151.0,0.0002347,2]
[366868682,1750530639299,-151.0,0.0002347,2]
[366868683,1750530639309,-151.0,0.0002347,2]
[366868684,1750530639318,-151.0,0.0002347,2]
[366868685,1750530639328,-500.0,0.0002347,2]
[366868686,1750530639337,-486.0,0.0002347,2]
[366868687,1750530639347,-596.0,0.0002347,2]
[366868688,1750530639356,-150.0,0.0002347,2]
[366868689,1750530639366,-4484412.31841319,0.00023472,3]
[366868699,1750530641247,-500.0,0.0002347,2]
[366868700,1750530641257,-11053.57024839,0.00023472,3]
[366868701,1750530641382,-6666.14705422,0.00023472,3]
[366868702,1750530641396,-12992.77852537,0.00023472,3]
[366868722,1750530643013,-150.0,0.0002347,2]
[366868723,1750530643023,-80341.76268998,0.00023472,3]
[366868724,1750530645872,-491.01432691,0.00023095,2]
[366868731,1750530668014,357.71891414,0.00024658,120]
[366868732,1750530669711,1423.83854959,0.00024658,120]
[366868744,1750531397266,250.0,0.00015,2]
[366868751,1750531573949,156.83,0.00013699,2]
[366868752,1750531692359,202.0,0.00016531,2]
[366868758,1750531836837,-500.0,0.00018293,2]
[366868759,1750531836847,-202.0,0.00018342,4]
[366868760,1750531836857,-500.0,0.00018788,2]
[366868761,1750531836867,-500.0,0.00019284,2]
[366868762,1750531836877,-173.36,0.0001931,2]
[366868763,1750531836887,-500.0,0.00019552,2]
[366868764,1750531836896,-500.0,0.00020122,2]
[366868765,1750531836906,-202.0,0.00020153,6]
[366868766,1750531836916,-203.5675578,0.00021384,2]
[366868767,1750531836926,-300.0,0.00021484,2]
[366868768,1750531836936,-300.0,0.00021484,2]
[366868769,1750531836946,-500.0,0.00021589,2]
[366868770,1750531836956,-202.0,0.00021965,9]
[366868771,1750531836966,-250.0,0.00021999,2]
[366868772,1750531836975,-23890.0,0.00022043,2]
[366868773,1750531836984,-183.76,0.0002207,2]
[366868774,1750531836994,-164.94,0.00022087,2]
[366868775,1750531837003,-798.09,0.00022135,2]
[366868776,1750531837013,-1200.0,0.00022135,2]
[366868777,1750531837025,-307.07,0.00022136,2]
[366868778,1750531837034,-461.95,0.00022136,2]
[366868779,1750531837044,-666.0,0.00022169,2]
[366868780,1750531837055,-600.0,0.00022174,2]
[366868781,1750531837065,-1000.0,0.00022176,2]
[366868783,1750531837075,-1434.27,0.0002219,2]
[366868785,1750531837084,-5000.0,0.00022199,2]
[366868787,1750531837094,-500.0,0.00022211,2]
[366868789,1750531837103,-1957.856,0.00022298,2]
[366868790,1750531837112,-207.4,0.00022298,2]
[366868792,1750531837122,-1000.0,0.00022298,4]
[366868794,1750531837132,-1000.0,0.00022298,4]
[366868796,1750531837141,-245.17,0.00022298,2]
[366868798,1750531837151,-304.37,0.00022298,2]
[366868800,1750531837160,-253.88,0.00022298,2]
[366868802,1750531837169,-300.0,0.00022339,2]
[366868804,1750531837179,-151.0,0.00022339,2]
[366868806,1750531837189,-621.78829552,0.00022339,2]
[366868809,1750531837199,-2030.296672,0.00022353,2]
[366868810,1750531837208,-150.0,0.00022364,2]
[366868813,1750531837218,-300.58307874,0.00022408,2]
[366868814,1750531837227,-156.83,0.00022505,2]
[366868816,1750531837236,-869.65,0.00022541,2]
[366868818,1750531837246,-797.81,0.00022541,2]
[366868820,1750531837255,-166.73,0.00022761,2]
[366868822,1750531837265,-384.97718315,0.000229,8]
[366868824,1750531837274,-384.97718301,0.00023072,8]
[366868827,1750531837284,-2880.0,0.00023091,2]
[366868829,1750531837293,-473.0,0.00023207,7]
[366868830,1750531837303,-2261.44941,0.0002324,2]
[366868833,1750531837312,-384.97718301,0.00023245,8]
[366868834,1750531837322,-415.0,0.00023253,2]
[366868836,1750531837331,-625.4091,0.00023273,2]
[366868839,1750531837341,-272.3857,0.00023273,2]
[366868841,1750531837351,-2000.0,0.00023283,2]
[366868843,1750531837361,-1000.0,0.00023318,2]
[366868845,1750531837371,-150.0,0.00023333,2]
[366868847,1750531837384,-1000.0,0.00023341,2]
[366868848,1750531837393,-150.0,0.00023344,2]
[366868851,1750531837404,-150.0,0.0002335,2]
[366868853,1750531837414,-150.0,0.00023352,2]
[366868855,1750531837423,-150.0,0.00023355,2]
[366868857,1750531837432,-264.0,0.00023356,2]
[366868858,1750531837442,-1000.0,0.00023358,2]
[366868859,1750531837454,-150.0,0.00023363,2]
[366868860,1750531837465,-5446.60506668,0.00023363,2]
[366868861,1750531837474,-9603.9205209,0.00023363,2]
[366868862,1750531837483,-744.640813,0.00023363,2]
[366868863,1750531837493,-2500.0,0.00023363,2]
[366868864,1750531837503,-991.5848,0.00023363,2]
[366868865,1750531837512,-150.0,0.00023364,2]
[366868866,1750531837522,-1000.0,0.00023364,2]
[366868867,1750531837531,-744.64081282,0.00023365,2]
[366868869,1750531837542,-744.64081282,0.00023367,2]
[366868871,1750531837552,-150.99,0.00023368,2]
[366868873,1750531837561,-9999.99,0.00023368,2]
[366868875,1750531837571,-1484.63,0.00023368,2]
[366868877,1750531837580,-512.0,0.00023368,2]
[366868879,1750531837589,-150.99,0.00023368,2]
[366868881,1750531837599,-744.64081282,0.00023369,2]
[366868883,1750531837609,-150.0,0.00023369,2]
[366868885,1750531837618,-150.0,0.0002337,2]
[366868887,1750531837627,-744.64081282,0.00023371,2]
[366868889,1750531837637,-744.64081282,0.00023373,2]
[366868891,1750531837646,-5000.0,0.00023373,2]
[366868893,1750531837655,-293.18585938,0.00023373,2]
[366868895,1750531837665,-744.64081282,0.00023375,2]
[366868897,1750531837674,-150.0,0.00023375,2]
[366868899,1750531837683,-744.64081282,0.00023377,2]
[366868901,1750531837693,-744.64081282,0.00023379,2]
[366868903,1750531837703,-181.99292367,0.00023379,2]
[366868905,1750531837712,-181.99292365,0.0002338,2]
[366868907,1750531837721,-163.91509573,0.0002338,2]
[366868909,1750531837732,-362.4506204,0.0002338,2]
[366868911,1750531837742,-558.6462,0.0002338,3]
[366868913,1750531837751,-181.99292365,0.0002338,2]
[366868915,1750531837762,-744.64081282,0.00023381,2]
[366868917,1750531837771,-150.0,0.00023381,2]
[366868919,1750531837780,-1000.0,0.00023381,2]
[366868922,1750531837790,-744.64081282,0.00023382,2]
[366868924,1750531837800,-150.0,0.00023384,2]
[366868927,1750531837810,-744.64081282,0.00023384,2]
[366868929,1750531837820,-744.64081282,0.00023386,2]
[366868932,1750531837830,-209.71171567,0.00023388,2]
[366868934,1750531837840,-744.64081282,0.00023388,2]
[366868938,1750531837850,-150.0,0.0002339,2]
[366868941,1750531837859,-744.64081282,0.0002339,2]
[366868944,1750531837869,-744.64081282,0.00023392,2]
[366868947,1750531837879,-150.0,0.00023396,2]
[366868950,1750531837890,-150.0,0.00023397,2]
[366868952,1750531837900,-150.0,0.00023399,2]
[366868954,1750531837909,-150.0,0.00023403,2]
[366868956,1750531837918,-150.0,0.00023404,2]
[366868958,1750531837928,-150.0,0.00023406,2]
[366868960,1750531837937,-430.23675754,0.00023406,2]
[366868962,1750531837948,-203.19164962,0.00023417,2]
[366868964,1750531837957,-150.0,0.00023417,2]
[366868966,1750531837967,-384.97718301,0.00023417,9]
[366868968,1750531837977,-150.0,0.00023419,2]
[366868970,1750531837987,-150.0,0.00023421,2]
[366868972,1750531837997,-150.0,0.00023432,2]
[366868974,1750531838006,-150.0,0.00023434,2]
[366868976,1750531838016,-150.0,0.00023434,2]
[366868978,1750531838025,-500.0,0.00023444,3]
[366868980,1750531838035,-150.0,0.0002345,2]
[366868982,1750531838044,-150.0,0.00023451,2]
[366868984,1750531838053,-546.0,0.00023453,2]
[366868986,1750531838063,-546.0,0.00023453,2]
[366868988,1750531838073,-546.0,0.00023453,2]
[366868990,1750531838082,-150.0,0.00023454,2]
[366868992,1750531838092,-150.0,0.00023456,2]
[366868994,1750531838101,-237604.98607031,0.00023458,7]
[366868996,1750531838110,-150.0,0.0002346,2]
[366868998,1750531838120,-546.0,0.0002346,2]
[366869000,1750531838129,-546.0,0.00023463,2]
[366869002,1750531838138,-18580.4888116,0.00023463,2]
[366869004,1750531838148,-23794.5966639,0.00023463,2]
[366869006,1750531838159,-1988.0957497,0.00023463,2]
[366869008,1750531838169,-82827.3326521,0.00023463,2]
[366869010,1750531838179,-1155.0651985,0.00023463,2]
[366869012,1750531838188,-12221.4497667,0.00023463,2]
[366869014,1750531838198,-2675.883353,0.00023463,2]
[366869016,1750531838207,-37537.8934798,0.00023463,2]
[366869018,1750531838217,-648.01,0.0002347,2]
[366869020,1750531838227,-500.0,0.0002347,2]
[366869022,1750531838236,-500.0,0.0002347,2]
[366869024,1750531838245,-500.0,0.0002347,2]
[366869026,1750531838255,-500.0,0.0002347,2]
[366869028,1750531838265,-150.0,0.0002347,2]
[366869030,1750531838274,-500.0,0.0002347,2]
[366869032,1750531838284,-150.0,0.0002347,2]
[366869034,1750531838293,-500.0,0.0002347,2]
[366869036,1750531838303,-500.0,0.0002347,2]
[366869038,1750531838312,-500.0,0.0002347,2]
[366869040,1750531838321,-150.44106238,0.0002347,2]
[366869072,1750531838603,-150.0,0.0002347,2]
[366869074,1750531838612,-500.0,0.0002347,2]
[366869076,1750531838622,-500.0,0.0002347,2]
[366869078,1750531838631,-500.0,0.0002347,2]
[366869080,1750531838640,-500.0,0.0002347,2]
[366869082,1750531838650,-500.0,0.0002347,2]
[366869084,1750531838659,-500.0,0.0002347,2]
[366869086,1750531838669,-500.0,0.0002347,2]
[366869088,1750531838678,-486.0,0.0002347,2]
[366869090,1750531838687,-596.0,0.0002347,2]
[366869092,1750531838696,-150.0,0.0002347,2]
[366869094,1750531838706,-500.0,0.0002347,2]
[366869096,1750531838715,-158.21118038,0.0002347,2]
[366869098,1750531838724,-150.0,0.0002347,2]
[366869100,1750531838733,-150.0,0.0002347,2]
[366869102,1750531838743,-150.0,0.0002347,2]
[366869104,1750531838752,-150.0,0.0002347,2]
[366869106,1750531838763,-500.0,0.0002347,2]
[366869108,1750531838772,-150.0,0.0002347,2]
[366869110,1750531838781,-500.0,0.0002347,2]
[366869112,1750531838791,-150.0,0.0002347,2]
[366869114,1750531838800,-500.0,0.0002347,2]
[366869116,1750531838809,-500.0,0.0002347,2]
[366869118,1750531838818,-150.49237548,0.0002347,2]
[366869120,1750531838827,-500.0,0.0002347,2]
[366869122,1750531838836,-167.74196409,0.0002347,2]
[366869124,1750531838846,-150.0,0.0002347,2]
[366869126,1750531838855,-500.0,0.0002347,2]
[366869128,1750531838864,-500.0,0.0002347,2]
[366869130,1750531838874,-150.0,0.0002347,2]
[366869132,1750531838883,-500.0,0.0002347,2]
[366869134,1750531838892,-150.0,0.0002347,2]
[366869136,1750531838901,-150.97,0.0002347,2]
[366869138,1750531838910,-150.97,0.0002347,2]
[366869140,1750531838919,-150.97,0.0002347,2]
[366869142,1750531838928,-150.97,0.0002347,2]
[366869144,1750531838938,-150.97,0.0002347,2]
[366869146,1750531838947,-150.97,0.0002347,2]
[366869148,1750531838957,-150.97,0.0002347,2]
[366869150,1750531838966,-150.97,0.0002347,2]
[366869152,1750531838975,-150.97,0.0002347,2]
[366869154,1750531838985,-150.97,0.0002347,2]
[366869156,1750531838994,-150.97,0.0002347,2]
[366869158,1750531839003,-150.97,0.0002347,2]
[366869160,1750531839013,-150.97,0.0002347,2]
[366869162,1750531839023,-150.97,0.0002347,2]
[366869164,1750531839033,-150.0,0.0002347,2]
[366869166,1750531839043,-150.97,0.0002347,2]
[366869168,1750531839052,-150.0,0.0002347,2]
[366869170,1750531839061,-500.0,0.0002347,2]
[366869172,1750531839071,-150.0,0.0002347,2]
[366869174,1750531839080,-247.51,0.0002347,2]
[366869176,1750531839090,-150.0,0.00023471,2]
[366869178,1750531839100,-1000.0,0.00023471,2]
[366869180,1750531839109,-249.76,0.00023472,2]
[366869182,1750531839118,-304.27,0.00023472,2]
[366869184,1750531839128,-249.94,0.00023472,2]
[366869186,1750531839137,-501.22816257,0.00023473,2]
[366869189,1750531839147,-116977.8122922,0.00023473,2]
[366869223,1750531839553,-450.5,0.00023473,2]
[366869227,1750531839578,-283759.13754491,0.00023473,2]
[366869229,1750531839587,-151.0,0.00023473,2]
[366869231,1750531839597,-151.0,0.00023473,2]
[366869233,1750531839607,-150.0,0.00023473,2]
[366869235,1750531839617,-151.0,0.00023473,7]
[366869237,1750531839627,-151.0,0.00023473,7]
[366869239,1750531839636,-150.0,0.00023474,2]
[366869241,1750531839646,-150.0,0.00023478,2]
[366869243,1750531839656,-500.0,0.00023479,2]
[366869245,1750531839666,-259.45463877,0.00023479,2]
[366869247,1750531839677,-34373.95721264,0.00023479,2]
[366869249,1750531839687,-516.18542612,0.00023479,2]
[366869251,1750531839699,-500.0,0.00023479,2]
[366869253,1750531839709,-500.0,0.00023479,2]
[366869255,1750531839719,-939.66404766,0.00023479,2]
[366869257,1750531839729,-500.0,0.00023479,2]
[366869259,1750531839739,-500.0,0.00023479,2]
[366869261,1750531839748,-939.66404766,0.00023479,2]
[366869263,1750531839758,-152.41351079,0.00023479,2]
[366869265,1750531839767,-175.82629953,0.00023479,2]
[366869267,1750531839777,-939.66404766,0.00023479,2]
[366869269,1750531839787,-939.66404766,0.00023479,2]
[366869271,1750531839796,-470.71214551,0.00023479,2]
[366869273,1750531839805,-939.66404766,0.00023479,2]
[366869275,1750531839814,-939.66404766,0.00023479,2]
[366869277,1750531839824,-500.0,0.00023479,2]
[366869279,1750531839833,-939.66404766,0.00023479,2]
[366869281,1750531839843,-939.66404766,0.00023479,2]
[366869283,1750531839854,-939.66404766,0.00023479,2]
[366869285,1750531839863,-939.66404766,0.00023479,2]
[366869287,1750531839872,-189.48352933,0.00023479,2]
[366869289,1750531839882,-939.66404766,0.00023479,2]
[366869291,1750531839891,-500.0,0.00023479,2]
[366869293,1750531839901,-500.0,0.00023479,2]
[366869295,1750531839911,-939.66404766,0.00023479,2]
[366869297,1750531839921,-939.66404766,0.00023479,2]
[366869300,1750531839932,-500.0,0.00023479,2]
[366869302,1750531839942,-500.0,0.00023479,2]
[366869304,1750531839951,-939.66404766,0.00023479,2]
[366869307,1750531839960,-939.66404766,0.00023479,2]
[366869310,1750531839970,-939.66404766,0.00023479,2]
[366869312,1750531839979,-939.66404766,0.00023479,2]
[366869314,1750531839988,-939.66404766,0.00023479,2]
[366869316,1750531839998,-505.31355603,0.00023479,2]
[366869318,1750531840008,-1033.63045242,0.00023479,2]
[366869320,1750531840018,-1033.63045242,0.00023479,2]
[366869322,1750531840027,-1033.63045242,0.00023479,2]
[366869324,1750531840037,-1033.63045242,0.00023479,2]
[366869326,1750531840047,-1033.63045242,0.00023479,2]
[366869328,1750531840057,-1033.63045242,0.00023479,2]
[366869330,1750531840067,-1033.63045242,0.00023479,2]
[366869332,1750531840077,-1033.63045242,0.00023479,2]
[366869334,1750531840087,-387.66383989,0.00023479,2]
[366869336,1750531840097,-253.682,0.00023479,2]
[366869338,1750531840107,-180.44,0.00023479,2]
[366869340,1750531840117,-361.34298588,0.00023479,2]
[366869342,1750531840127,-362.26261757,0.00023479,2]
[366869344,1750531840136,-500.0,0.00023479,2]
[366869346,1750531840146,-500.0,0.00023479,2]
[366869348,1750531840155,-228.39412731,0.00023479,2]
[366869350,1750531840165,-500.0,0.00023479,2]
[366869352,1750531840175,-532.24019336,0.00023479,2]
[366869354,1750531840184,-500.0,0.00023479,2]
[366869356,1750531840193,-500.0,0.00023479,2]
[366869358,1750531840203,-500.0,0.00023479,2]
[366869360,1750531840212,-500.0,0.00023479,2]
[366869363,1750531840222,-270.66104834,0.00023479,2]
[366869365,1750531840232,-500.0,0.00023479,2]
[366869367,1750531840242,-1569.0,0.0002348,2]
[366869369,1750531840252,-1848189.45784651,0.0002348,2]
[366869371,1750531840262,-150.0,0.0002348,2]
[366869373,1750531840272,-170.346206,0.0002348,7]
[366869375,1750531840282,-1834.2375805,0.0002348,2]
[366869377,1750531840293,-192569.15429418,0.0002348,2]
[366869379,1750531840303,-150.0,0.0002348,2]
[366869381,1750531840312,-150.0,0.0002348,2]
[366869383,1750531840322,-150.0,0.00023481,2]
[366869385,1750531840331,-150.0,0.00023481,2]
[366869387,1750531840341,-150.0,0.00023482,2]
[366869389,1750531840350,-150.0,0.00023487,2]
[366869391,1750531840360,-150.0,0.00023487,2]
[366869393,1750531840370,-150.97,0.00023488,2]
[366869395,1750531840383,-150.0,0.0002349,2]
[366869398,1750531840394,-150.0,0.0002349,2]
[366869399,1750531840404,-2312301.59826845,0.00023492,3]
[366869404,1750531840439,-15826.07302934,0.00023492,3]
[366869455,1750531840928,-517.2842987,0.00023363,2]
[366869461,1750531840970,-1982.7157013,0.00023363,2]
[366869463,1750531840981,-9622.35425631,0.00023492,3]
[366869470,1750531841038,-2301.37340079,0.00023492,3]
[366869472,1750531841050,-657.84389,0.00023492,3]
[366869694,1750531843293,-790.9821959,0.00023135,2]
[366869696,1750531843303,-744.64081282,0.00023394,2]
[366869698,1750531843313,-151.0,0.0002349,2]
[366869700,1750531843322,-8641.63299128,0.00023492,3]
[366869805,1750531844231,-838.97110016,0.00023492,3]
[366869980,1750531846002,-1417.0,0.0002346,2]
[366869982,1750531846012,-682.69109,0.00023492,3]
[366872168,1750531872651,202.0,0.00016531,2]
[366872174,1750532098722,-305.99,0.00021959,2]
[366872175,1750532099248,-5394.01,0.0002196,2]
[366872178,1750532538726,156.78,0.00013699,2]
[366872179,1750532613932,150.0,0.00017456,2]
[366872185,1750533032204,-190.7629687,0.000182,2]
[366872186,1750533032214,-151.0,0.00018281,2]
[366872187,1750533032224,-300.0,0.000183,2]
[366872188,1750533032234,-250.0,0.000183,2]
[366872189,1750533032244,-166.02550186,0.000185,2]
[366872190,1750533032253,-172.49,0.00019178,2]
[366872191,1750533032263,-1200.0,0.00019401,2]
[366872192,1750533032274,-416.72990108,0.00019401,2]
[366872193,1750533032285,-500.0,0.00019403,2]
[366872194,1750533032294,-163.0,0.00020006,2]
[366872195,1750533032304,-2500.0,0.00020007,2]
[366872196,1750533032313,-300.0,0.0002002,2]
[366872197,1750533032323,-250.0,0.0002002,2]
[366872198,1750533032333,-190.7629687,0.0002003,2]
[366872199,1750533032342,-300.0,0.00020679,2]
[366872200,1750533032351,-500.0,0.0002068,2]
[366872201,1750533032360,-202.0,0.00020776,2]
[366872202,1750533032370,-151.0,0.00020887,2]
[366872203,1750533032380,-164.51,0.00020899,2]
[366872204,1750533032389,-2500.0,0.000209,2]
[366872206,1750533032399,-500.0,0.000209,2]
[366872208,1750533032409,-564.07818501,0.000211,4]
[366872209,1750533032419,-564.07818501,0.000211,4]
[366872210,1750533032429,-564.07818501,0.000211,4]
[366872211,1750533032439,-564.07818501,0.000211,4]
[366872212,1750533032449,-564.07818501,0.000211,4]
[366872213,1750533032459,-564.07818501,0.000211,4]
[366872214,1750533032469,-564.07818501,0.000211,4]
[366872215,1750533032480,-564.07818501,0.000211,4]
[366872216,1750533032491,-1680.0,0.00021241,2]
[366872217,1750533032500,-246.85,0.00021381,2]
[366872218,1750533032510,-564.07818501,0.00021383,5]
[366872219,1750533032520,-246.85,0.00021387,2]
[366872220,1750533032532,-246.85,0.00021392,2]
[366872221,1750533032541,-246.85,0.00021398,2]
[366872222,1750533032551,-246.85,0.00021403,2]
[366872223,1750533032561,-246.85,0.00021409,2]
[366872224,1750533032571,-246.85,0.00021415,2]
[366872225,1750533032582,-246.85,0.0002142,2]
[366872226,1750533032592,-246.85,0.00021426,2]
[366872227,1750533032602,-246.85,0.00021431,2]
[366872228,1750533032612,-246.85,0.00021437,2]
[366872229,1750533032622,-246.85,0.00021443,2]
[366872230,1750533032632,-246.85,0.00021448,2]
[366872231,1750533032642,-246.85,0.00021454,2]
[366872232,1750533032652,-246.85,0.0002146,2]
[366872233,1750533032662,-246.85,0.00021465,2]
[366872234,1750533032675,-246.85,0.00021471,2]
[366872235,1750533032685,-250.18,0.00021475,2]
[366872236,1750533032695,-246.85,0.00021476,2]
[366872237,1750533032704,-246.85,0.00021482,2]
[366872238,1750533032714,-246.85,0.00021488,2]
[366872239,1750533032723,-160.26,0.00021496,2]
[366872240,1750533032733,-1500.0,0.00021516,2]
[366872242,1750533032743,-640.57,0.00021615,2]
[366872243,1750533032752,-200.0,0.00021632,7]
[366872244,1750533032762,-247.33,0.00021663,2]
[366872245,1750533032772,-304.39,0.00021684,2]
[366872246,1750533032783,-564.07818501,0.00021693,5]
[366872247,1750533032792,-1000.0,0.00021768,2]
[366872248,1750533032802,-168.0,0.00021807,2]
[366872249,1750533032812,-2243.0,0.00021808,2]
[366872250,1750533032822,-264.82,0.00021819,2]
[366872251,1750533032832,-190.7629687,0.00021859,2]
[366872252,1750533032843,-8475.77834456,0.00021949,2]
[366872253,1750533032853,-1000.0,0.00021957,2]
[366872254,1750533032863,-246.11,0.00021958,2]
[366872255,1750533032874,-249.99,0.00021958,2]
[366872256,1750533032884,-305.39,0.00021958,2]
[366872257,1750533032894,-250.5,0.00021958,2]
[366872258,1750533032904,-247.83,0.00021958,2]
[366872259,1750533032914,-300.05,0.00021958,2]
[366872260,1750533032926,-249.71,0.00021958,2]
[366872261,1750533032936,-246.35,0.00021958,2]
[366872262,1750533032946,-302.1,0.00021958,2]
[366872263,1750533032955,-247.76,0.00021958,2]
[366872264,1750533032966,-249.32,0.00021958,2]
[366872265,1750533032976,-254.5,0.00021958,2]
[366872266,1750533032988,-300.03,0.00021958,2]
[366872267,1750533032997,-252.29,0.00021959,2]
[366872268,1750533033007,-300.3,0.00021959,2]
[366872269,1750533033017,-248.16,0.00021959,2]
[366872270,1750533033027,-252.62,0.00021959,2]
[366872271,1750533033040,-301.33,0.00021959,2]
[366872272,1750533033051,-253.49,0.00021959,2]
[366872273,1750533033062,-247.37,0.00021959,2]
[366872274,1750533033073,-305.27,0.00021959,2]
[366872275,1750533033083,-245.55,0.00021959,2]
[366872276,1750533033094,-247.35,0.00021959,2]
[366872277,1750533033104,-305.34,0.00021959,2]
[366872278,1750533033114,-246.59,0.00021959,2]
[366872279,1750533033124,-253.73,0.00021959,2]
[366872280,1750533033135,-300.61,0.00021959,2]
[366872281,1750533033146,-254.78,0.00021959,2]
[366872282,1750533033157,-564.07818501,0.00022003,6]
[366872283,1750533033167,-1530.41,0.00022032,2]
[366872284,1750533033178,-521.22,0.00022032,2]
[366872285,1750533033189,-666.0,0.00022179,2]
[366872286,1750533033200,-202.0,0.00022229,4]
[366872287,1750533033210,-1957.856,0.00022299,2]
[366872288,1750533033221,-207.4,0.00022299,2]
[366872289,1750533033232,-300.0,0.00022299,2]
[366872290,1750533033242,-300.0,0.00022299,2]
[366872292,1750533033253,-300.0,0.00022299,2]
[366872294,1750533033263,-300.0,0.00022299,2]
[366872296,1750533033274,-300.0,0.00022299,2]
[366872298,1750533033286,-151.0,0.00022299,2]
[366872300,1750533033296,-564.07818501,0.00022314,7]
[366872302,1750533033307,-250.98,0.00022345,2]
[366872304,1750533033317,-300.35,0.00022345,2]
[366872306,1750533033327,-247.93,0.00022345,2]
[366872308,1750533033337,-301.58,0.00022345,2]
[366872310,1750533033348,-251.07,0.00022345,2]
[366872312,1750533033358,-250.41,0.00022345,2]
[366872314,1750533033368,-304.96,0.00022345,2]
[366872316,1750533033379,-250.14,0.00022345,2]
[366872318,1750533033389,-249.43,0.00022345,2]
[366872320,1750533033400,-4630.36,0.00022346,2]
[366872321,1750533033410,-2030.296672,0.00022354,2]
[366872322,1750533033420,-397.0,0.00022374,2]
[366872324,1750533033430,-2105.41764886,0.00022409,2]
[366872326,1750533033440,-200.0,0.00022415,2]
[366872328,1750533033450,-397.0,0.00022431,2]
[366872329,1750533033460,-247.99,0.0002246,2]
[366872330,1750533033471,-247.16,0.0002246,2]
[366872331,1750533033481,-302.33,0.00022462,2]
[366872332,1750533033491,-251.48,0.00022463,2]
[366872333,1750533033501,-1567.4085837,0.00022464,2]
[366872334,1750533033511,-247.25,0.00022492,2]
[366872335,1750533033521,-250.09,0.00022492,2]
[366872336,1750533033531,-304.32,0.00022496,2]
[366872337,1750533033541,-300.0,0.00022502,2]
[366872338,1750533033552,-249.6,0.00022545,2]
[366872339,1750533033562,-252.26,0.00022545,2]
[366872340,1750533033572,-300.37,0.00022552,2]
[366872341,1750533033582,-245.11,0.00022562,2]